bitfinex/quotes_ETHUSD_20230703
["timestamp","ask_amount","ask_price","bid_price","bid_amount"]
[1688372238547,7.59857,1977.2,1976.6,0.01]
[1688372238718,0.759857,1977.1,1976.6,0.01]
[1688372239041,12.64572,1977.0,1976.6,0.01]
[1688372239340,14.83162,1977.0,1976.6,0.01]
[1688372239702,15.17604,1976.8,1976.6,0.01]
[1688372240103,13.01786,1976.7,1976.6,0.01]
[1688372240303,14.825514,1976.7,1976.6,0.01]
[1688372240742,17.044614,1976.7,1976.6,0.01]
[1688372241114,19.574074,1976.7,1976.6,0.01]
[1688372242808,22.13286216,1976.7,1976.6,0.01]
[1688372243142,22.13286216,1976.7,1975.6,3.0]
[1688372243348,12.6497,1976.4,1975.7,2.55878816]
[1688372243907,0.02712139,1976.3,1975.7,2.57522189]
[1688372244108,10.12084,1976.2,1975.7,2.57522189]
[1688372244308,12.65094,1976.2,1975.7,2.57522189]
[1688372245145,12.65094,1976.2,1975.7,0.01643373]
[1688372246255,4.707654,1976.7,1976.0,1.282]
[1688372246553,13.01814,1976.7,1976.1,7.89821857]
[1688372248279,37.89241,1976.8,1976.4,7.323]
[1688372248280,2.2736,1976.8,1976.4,7.323]
[1688372248492,5.05882,1976.8,1976.5,2.55878816]
[1688372248778,10.11764,1976.8,1976.5,2.55878816]
[1688372249378,12.64698,1976.8,1976.5,2.55878816]
[1688372249852,12.64698,1976.8,1976.4,2.0]
[1688372250183,12.64698,1976.8,1976.4,15.22878816]
[1688372250384,12.64698,1976.8,1976.4,17.22878816]
[1688372250570,12.64698,1976.8,1976.4,15.22878816]
[1688372250571,13.911678,1976.8,1976.4,15.22878816]
[1688372251146,5.05836,1977.0,1976.5,9.88178816]
[1688372251345,5.05844,1976.9,1976.5,9.88178816]
[1688372251778,5.05844,1976.9,1976.5,22.55178816]
[1688372252079,5.05836,1977.0,1976.6,2.0]
[1688372252274,10.11666,1977.0,1976.7,2.55878816]
[1688372252476,12.64574,1977.0,1976.7,2.55878816]
[1688372252640,12.64574,1977.0,1976.4,11.41497791]
[1688372252836,12.64574,1977.0,1976.5,7.88178816]
[1688372253062,12.64574,1977.0,1976.5,2.55878816]
[1688372253063,14.37653,1977.0,1976.5,2.55878816]
[1688372253649,14.37653,1977.0,1976.4,2.0]
[1688372253853,14.37653,1977.0,1976.4,4.55878816]
[1688372254283,16.93531816,1977.0,1976.0,3.012495]
[1688372254495,16.93531816,1977.0,1975.8,5.06118]
[1688372254496,8.53031998,1976.9,1975.8,5.06118]
[1688372254688,20.23704,1976.6,1975.5,7.06176]
[1688372254986,5.06006,1976.3,1975.7,2.0]
[1688372255148,10.12012,1976.3,1975.9,2.0]
[1688372255345,10.12012,1976.3,1976.0,7.88178816]
[1688372255783,10.12012,1976.3,1976.0,20.55178816]
[1688372255977,10.12012,1976.3,1976.0,7.88178816]
[1688372256177,10.12012,1976.3,1975.9,2.0]
[1688372256178,12.6501,1976.3,1975.9,2.0]
[1688372256462,14.168104,1976.3,1975.9,2.0]
[1688372256811,14.168104,1976.3,1975.7,2.0]
[1688372256965,0.02617059,1976.2,1975.7,2.0]
[1688372257167,12.65143,1976.1,1975.7,2.0]
[1688372257376,10.1212,1976.1,1975.9,2.0]
[1688372257565,0.0299184,1976.0,1975.9,2.0]
[1688372257776,5.0906384,1976.0,1975.9,2.0]
[1688372257977,5.06072,1976.0,1975.8,2.0]
[1688372258199,5.0606,1976.1,1975.8,2.55878816]
[1688372258403,5.06074,1976.0,1975.8,2.55878816]
[1688372258863,5.0606,1976.1,1975.8,7.62002816]
[1688372259065,5.0606,1976.1,1975.8,2.55878816]
[1688372259387,10.12122,1976.1,1975.8,2.40878816]
[1688372260505,12.65145,1976.1,1975.8,2.40878816]
[1688372260712,13.916584,1976.1,1975.8,12.67]
[1688372260917,0.02916541,1976.0,1975.8,12.67]
[1688372261213,12.65245,1975.9,1975.8,12.67]
[1688372261379,12.65245,1975.9,1975.3,5.343]
[1688372261714,12.65245,1975.9,1975.4,2.55878816]
[1688372262269,12.65245,1975.9,1975.4,4.55878816]
[1688372263598,13.25803739,1975.9,1975.4,4.55878816]
[1688372264189,12.65245,1975.9,1975.4,9.62104816]
[1688372265116,12.65245,1975.9,1975.5,7.323]
[1688372265275,12.65245,1975.9,1975.5,9.88178816]
[1688372266621,10.12196,1975.9,1975.6,2.55878816]
[1688372266821,12.65245,1975.9,1975.6,2.55878816]
[1688372267680,12.65245,1975.9,1975.5,2.0164354]
[1688372267887,14.150885,1975.9,1975.5,14.6864354]
[1688372268222,14.150885,1975.9,1975.5,2.0164354]
[1688372268625,12.65245,1975.9,1975.5,2.0164354]
[1688372269227,2.3319,1976.0,1975.5,2.0164354]
[1688372269228,5.06011,1976.3,1975.8,7.323]
[1688372269379,5.06047,1976.1,1975.9,2.55878816]
[1688372269580,10.12094,1976.1,1975.9,2.55878816]
[1688372269920,10.12094,1976.1,1975.8,2.0]
[1688372270087,12.65117,1976.1,1975.8,2.0]
[1688372270606,12.65117,1976.1,1975.6,5.06168]
[1688372270827,12.65117,1976.1,1975.6,2.55878816]
[1688372271034,12.65117,1976.1,1975.6,4.55878816]
[1688372272246,12.65117,1976.1,1975.7,2.55878816]
[1688372272247,5.06049,1976.1,1975.7,2.55878816]
[1688372272543,5.06049,1976.1,1975.7,20.29027816]
[1688372272748,5.06049,1976.1,1975.7,15.22878816]
[1688372273040,10.12098,1976.1,1975.7,20.55178816]
[1688372274121,10.12098,1976.1,1975.7,15.22878816]
[1688372276029,10.12098,1976.1,1975.7,20.55178816]
[1688372276030,12.65121,1976.1,1975.7,20.55178816]
[1688372276338,10.12098,1976.1,1975.7,20.55178816]
[1688372278388,5.06049,1976.1,1975.7,27.61321816]
[1688372278659,12.38885,1976.2,1975.7,32.67470816]
[1688372278864,12.38885,1976.2,1975.7,25.57244816]
[1688372278865,5.06037,1976.2,1975.7,25.57244816]
[1688372279033,5.06037,1976.2,1975.7,23.04170816]
[1688372279865,10.12076,1976.2,1975.7,17.98021816]
[1688372280160,10.12076,1976.2,1975.8,2.0]
[1688372280367,5.06037,1976.2,1975.9,7.88178816]
[1688372280535,13.662724,1976.2,1975.6,4.0]
[1688372280734,12.65068,1976.2,1975.6,6.55878816]
[1688372281124,15.20946816,1976.2,1975.3,1.298]
[1688372281474,15.20946816,1976.2,1975.3,0.02]
[1688372281475,2.20936689,1976.1,1975.3,0.02]
[1688372281652,15.18324,1975.9,1975.3,0.02]
[1688372281971,12.65405,1975.7,1975.3,0.02]
[1688372283127,12.65405,1975.7,1975.3,5.08242]
[1688372284041,12.65405,1975.7,1975.3,0.02]
[1688372285417,12.65405,1975.7,1975.3,12.69]
[1688372286184,12.65405,1975.7,1975.3,0.02]
[1688372286337,14.7996444,1975.7,1975.3,0.02]
[1688372287837,14.7996444,1975.7,1975.3,12.69]
[1688372289381,3.84078816,1975.6,1975.3,12.69]
[1688372289612,15.186,1975.5,1975.3,0.02]
[1688372290574,17.4373,1975.5,1975.3,0.02]
[1688372290777,14.39938,1975.4,1975.3,0.02]
[1688372291376,0.01999999,1975.3,1974.7,4.0]
[1688372291575,10.12594,1975.2,1974.7,9.06406]
[1688372291753,12.65732,1975.2,1974.7,9.06402]
[1688372291954,12.65732,1975.2,1974.7,4.0]
[1688372292287,12.65732,1975.2,1974.7,9.06398]
[1688372292288,14.176189,1975.2,1974.7,9.06398]
[1688372292469,14.176189,1975.2,1974.7,14.12804]
[1688372292986,14.176189,1975.2,1974.7,9.08042207]
[1688372293370,14.176189,1975.2,1974.7,4.01644207]
[1688372294116,14.176189,1975.2,1974.7,9.08047207]
[1688372294995,14.176189,1975.2,1974.7,4.01644207]
[1688372295171,10.12668,1975.0,1974.7,2.0]
[1688372295369,12.65832,1975.0,1974.5,5.47318434]
[1688372295572,14.78542,1975.0,1974.5,0.40874434]
[1688372295809,14.78542,1975.0,1974.5,2.0]
[1688372296106,14.78542,1975.0,1974.5,7.06453]
[1688372296315,14.78542,1975.0,1974.5,12.1291]
[1688372296812,12.25378,1975.0,1974.5,12.1291]
[1688372297871,12.25378,1975.0,1974.5,14.66138]
[1688372298696,14.78542,1975.0,1974.5,7.06453]
[1688372298903,16.40572389,1975.0,1974.5,7.06453]
[1688372299479,16.40572389,1975.0,1974.5,12.1291]
[1688372300182,18.96451205,1975.0,1973.9,9.323]
[1688372300376,18.96451205,1975.0,1974.2,7.06534]
[1688372300377,16.40572389,1975.0,1974.2,7.06534]
[1688372300575,16.40572389,1975.0,1973.9,0.12644336]
[1688372300576,4.19936055,1974.9,1973.9,0.12644336]
[1688372300816,12.66077,1974.6,1974.0,12.13152]
[1688372301403,10.12862,1974.6,1974.0,17.22322816]
[1688372301609,10.03433,1974.6,1974.0,17.22322816]
[1688372301916,15.09866,1974.6,1974.2,5.06533]
[1688372303120,15.09866,1974.6,1974.2,10.13067]
[1688372303929,15.09866,1974.6,1974.2,5.06533]
[1688372304335,15.09866,1974.6,1974.2,12.68]
[1688372304533,19.32487757,1974.6,1974.2,12.68]
[1688372304739,0.897,1974.5,1974.2,12.68]
[1688372304935,12.66205,1974.4,1974.1,0.01644706]
[1688372305097,12.66205,1974.4,1973.8,5.52426371]
[1688372305430,12.66205,1974.4,1973.8,13.12380371]
[1688372306240,0.899,1974.3,1973.8,0.45803371]
[1688372306436,12.66367,1974.2,1973.8,0.059411]
[1688372307029,12.66367,1974.2,1973.8,12.739411]
[1688372307238,12.66462,1974.0,1973.8,12.739411]
[1688372307393,10.1317,1974.0,1973.8,0.059411]
[1688372307999,12.66462,1974.0,1973.8,0.059411]
[1688372308401,11.03122,1973.9,1973.8,0.059411]
[1688372308598,13.56427,1973.9,1973.8,0.059411]
[1688372308798,15.173989,1973.9,1973.8,0.059411]
[1688372309238,17.73277716,1973.9,1972.2,30.48872771]
[1688372309455,3.125411,1973.8,1969.7,53.2423616]
[1688372309650,2.73446039,1970.6,1969.8,5.11669343]
[1688372309857,2.53742,1970.5,1970.0,2.5805372]
[1688372310050,2.47069716,1970.4,1970.0,2.5805372]
[1688372310247,2.47069716,1970.4,1969.9,1.41964957]
[1688372310248,12.68852,1970.3,1969.9,0.01648212]
[1688372310548,10.17,1970.8,1969.9,0.01648212]
[1688372310549,5.07463,1970.6,1970.4,0.5]
[1688372310862,5.07463,1970.6,1970.3,0.99847716]
[1688372310863,10.1466,1971.1,1970.1,23.66474446]
[1688372311040,10.1466,1971.1,1970.9,1.49847716]
[1688372311350,10.1466,1971.1,1970.5,0.99847716]
[1688372311351,17.05936189,1971.0,1970.5,0.99847716]
[1688372311510,0.899,1970.6,1970.2,0.99847716]
[1688372311856,0.899,1970.6,1969.6,0.99847716]
[1688372311857,0.894,1970.3,1969.6,0.99847716]
[1688372312007,3.43362,1970.4,1970.2,7.58975811]
[1688372312215,10.15072,1970.3,1969.8,0.99847716]
[1688372312421,10.15072,1970.3,1968.8,0.6]
[1688372312422,10.15072,1970.3,1969.6,0.99847716]
[1688372312667,5.07536,1970.3,1970.0,0.99847716]
[1688372312829,0.899,1970.2,1969.6,0.99847716]
[1688372313028,0.899,1970.2,1969.0,3.16073971]
[1688372313029,12.69014,1970.1,1969.8,0.99847716]
[1688372313245,0.899,1969.9,1969.8,0.99847716]
[1688372313566,13.58997,1969.9,1969.8,0.99847716]
[1688372313856,13.58997,1969.9,1968.9,5.57892]
[1688372313857,14.48297,1969.9,1969.5,0.99847716]
[1688372314059,14.48297,1969.9,1968.8,0.1]
[1688372314060,13.58417,1969.6,1968.8,0.1]
[1688372314356,5.97514,1969.3,1969.0,0.99847716]
[1688372314565,10.15628,1969.3,1969.1,0.99847716]
[1688372314782,1.292,1969.2,1969.1,0.99847716]
[1688372315067,11.4484,1969.2,1969.1,0.99847716]
[1688372315362,11.4484,1969.2,1968.9,0.99847716]
[1688372315522,1.292,1969.0,1968.9,0.99847716]
[1688372315717,11.44944,1969.0,1968.9,0.99847716]
[1688372316158,5.07872,1969.0,1968.9,0.99847716]
[1688372316470,5.07854,1969.1,1969.0,0.5]
[1688372316675,1.287,1969.8,1969.0,0.5]
[1688372316676,38.494,1970.3,1969.2,2.0]
[1688372316968,30.56,1970.3,1969.9,0.99847716]
[1688372317126,2.0,1970.5,1969.9,0.99847716]
[1688372317330,2.0,1970.5,1969.9,13.71495928]
[1688372317570,2.0,1970.5,1969.9,1.01495928]
[1688372317868,2.0,1970.5,1969.2,10.15602]
[1688372317869,2.5,1970.5,1969.2,10.15602]
[1688372318029,2.5,1970.5,1969.3,1.495602]
[1688372318543,2.5,1970.5,1969.3,6.573472]
[1688372319068,5.5,1970.5,1969.3,6.573472]
[1688372319255,5.76773971,1970.5,1969.3,0.48]
[1688372319468,1.284,1970.2,1969.3,0.48]
[1688372319770,4.292,1970.4,1969.3,5.55786]
[1688372319946,3.0,1970.3,1969.3,5.55786]
[1688372320586,3.0,1970.4,1969.5,2.0]
[1688372320876,3.0,1970.5,1969.6,0.02730083]
[1688372321031,3.0,1970.5,1969.5,12.48359]
[1688372321234,3.0,1970.5,1969.5,7.40639]
[1688372321540,7.68470508,1970.6,1969.8,2.0]
[1688372321966,7.68470508,1970.6,1969.8,7.07658]
[1688372322134,7.7011872,1970.6,1969.9,0.02792447]
[1688372322334,7.7011872,1970.6,1969.8,2.0]
[1688372322833,7.7011872,1970.6,1969.9,0.02761002]
[1688372323076,7.96892691,1970.6,1969.9,0.02761002]
[1688372323675,7.7011872,1970.6,1969.9,0.02761002]
[1688372323881,7.7011872,1970.6,1969.8,7.07664]
[1688372324082,7.7011872,1970.6,1969.9,0.02844954]
[1688372324376,7.7011872,1970.6,1969.8,7.07647]
[1688372324579,7.7011872,1970.6,1969.9,5.07635]
[1688372325282,7.96892691,1970.6,1969.9,5.07635]
[1688372325488,0.26773971,1970.5,1969.5,2.0]
[1688372325671,1.292,1970.2,1969.6,5.07696]
[1688372325866,0.26773971,1970.5,1969.7,2.0]
[1688372326065,1.54973971,1970.5,1969.8,5.07662]
[1688372326559,7.68470508,1970.6,1969.9,2.0]
[1688372326877,7.68470508,1970.6,1970.1,5.07585]
[1688372327472,7.68470508,1970.6,1970.1,10.15173]
[1688372328483,7.68470508,1970.6,1970.3,10.15067]
[1688372328693,7.68470508,1970.6,1970.3,5.07536]
[1688372328879,7.68470508,1970.6,1970.3,10.15072]
[1688372331762,7.68470508,1970.6,1970.3,9.03431829]
[1688372333461,7.68470508,1970.6,1970.5,4.53742]
[1688372333679,7.68470508,1970.6,1970.5,14.68712]
[1688372333861,7.68470508,1970.6,1970.5,15.16712]
[1688372334676,7.68470508,1970.6,1970.5,14.68712]
[1688372336008,4.35266498,1970.6,1970.5,14.72506439]
[1688372336431,4.35266498,1970.6,1970.5,14.68712]
[1688372337006,4.35266498,1970.6,1970.5,5.07485]
[1688372337204,4.35266498,1970.6,1970.5,12.1497]
[1688372337409,4.35266498,1970.6,1970.5,14.68712]
[1688372339409,4.35266498,1970.6,1970.5,16.155832]
[1688372339607,4.35266498,1970.6,1970.5,14.68712]
[1688372339986,4.35266498,1970.6,1970.5,12.1497]
[1688372340235,4.35266498,1970.6,1970.5,10.1497]
[1688372340933,4.35266498,1970.6,1970.5,12.68712]
[1688372342041,0.04383506,1970.6,1970.5,12.68712]
[1688372342193,0.04383506,1970.6,1970.5,15.06129953]
[1688372342417,0.04383506,1970.6,1970.5,12.73054553]
[1688372342645,0.04383506,1970.6,1970.5,12.68712]
[1688372345072,0.04383506,1970.6,1970.5,12.58712]
[1688372348442,0.04383506,1970.6,1970.4,5.07505]
[1688372348757,0.04383506,1970.6,1970.4,10.14993]
[1688372349052,0.04383506,1970.6,1970.5,5.07485]
[1688372350338,0.04383506,1970.6,1970.5,10.1497]
[1688372350675,0.04383506,1970.6,1970.5,5.07485]
[1688372350971,2.60262322,1970.6,1970.5,5.07485]
[1688372351271,2.60262322,1970.6,1970.1,2.0]
[1688372351272,7.94210534,1970.6,1970.1,2.0]
[1688372351429,13.00304106,1970.5,1970.2,5.0755]
[1688372351628,5.1212529,1970.4,1970.2,5.0755]
[1688372351967,7.68004106,1970.4,1970.2,5.0755]
[1688372352123,2.55878816,1970.4,1970.2,5.0755]
[1688372352623,5.323,1970.5,1970.2,12.7]
[1688372352624,13.00340634,1970.3,1970.2,12.7]
[1688372352830,13.00340634,1970.3,1970.0,5.07608]
[1688372353158,5.12161818,1970.2,1970.0,10.15212]
[1688372353361,7.68040634,1970.2,1970.0,10.15212]
[1688372353575,13.00340634,1970.1,1970.0,5.07604]
[1688372353783,13.00340634,1970.1,1969.9,5.07631]
[1688372353954,5.12161818,1970.0,1969.9,5.07628]
[1688372354149,7.68040634,1970.0,1969.9,5.07628]
[1688372354463,18.07954634,1970.0,1969.7,5.07688]
[1688372354758,18.07954634,1970.0,1969.6,7.67053]
[1688372354759,13.00340634,1969.9,1969.6,12.74759]
[1688372354959,5.12161818,1969.8,1969.6,5.07703]
[1688372355284,5.12161818,1969.8,1969.5,5.07741]
[1688372355285,5.323,1969.7,1969.2,5.0781]
[1688372355480,5.323,1969.5,1969.2,10.1563]
[1688372355777,1.292,1969.8,1969.2,12.6954]
[1688372355778,5.323,1969.3,1969.2,12.6954]
[1688372355947,5.323,1969.3,1969.1,5.07834]
[1688372355948,13.00340634,1969.3,1969.1,5.07834]
[1688372356154,5.12161818,1969.2,1969.1,10.1568]
[1688372356355,5.12161818,1969.2,1969.1,12.69603]
[1688372356646,5.12161818,1969.2,1969.1,10.1568]
[1688372356846,7.68040634,1969.2,1968.8,5.0791]
[1688372357085,6.38629212,1969.4,1968.8,12.69781]
[1688372357086,13.00340634,1969.1,1968.8,12.69781]
[1688372357367,5.12161818,1969.0,1968.8,22.8582]
[1688372357551,12.96075816,1968.9,1968.8,12.7]
[1688372357796,13.00340634,1968.9,1968.6,1.3755781]
[1688372357953,13.00340634,1968.9,1968.8,5.07923]
[1688372357954,7.88178816,1968.9,1968.8,5.07923]
[1688372358285,5.12411982,1968.9,1968.8,12.69807]
[1688372358496,6.35981,1969.4,1968.8,12.69807]
[1688372358497,5.12411982,1969.0,1968.8,12.69807]
[1688372358789,5.12411982,1968.9,1968.8,10.15846]
[1688372359192,10.44711982,1969.1,1968.8,5.07923]
[1688372359492,7.68290798,1969.0,1968.8,5.07923]
[1688372359702,5.12411982,1968.9,1968.7,10.15853]
[1688372359867,2.55878816,1968.8,1968.7,10.15853]
[1688372360052,13.00590798,1968.8,1968.6,6.4551781]
[1688372360247,5.12411982,1968.7,1968.6,6.4551781]
[1688372360583,5.12411982,1968.7,1968.6,8.9951981]
[1688372360758,5.12411982,1968.8,1968.6,13.9749481]
[1688372360959,13.00590798,1968.7,1968.6,6.3553281]
[1688372361374,13.00590798,1968.7,1968.6,11.4350781]
[1688372361582,5.12411982,1968.7,1968.6,13.9749481]
[1688372361882,5.12411982,1968.8,1968.6,13.9749481]
[1688372362126,5.12411982,1968.7,1968.6,13.9749481]
[1688372362356,0.41403194,1969.5,1968.8,2.0]
[1688372362630,0.41403194,1969.5,1969.0,10.15738]
[1688372362631,5.323,1969.3,1969.0,10.15738]
[1688372362832,7.88178816,1969.3,1969.0,10.15738]
[1688372363174,2.55878816,1969.2,1969.0,5.07869]
[1688372363374,2.55878816,1969.2,1969.0,10.15741]
[1688372363680,2.55878816,1969.2,1969.0,4.97869]
[1688372363876,7.88178816,1969.2,1969.0,10.05741]
[1688372364123,5.07754,1969.5,1969.0,12.59677]
[1688372364324,2.55878816,1969.4,1969.0,12.59677]
[1688372364790,7.88178816,1969.4,1969.0,12.59677]
[1688372365338,2.55878816,1969.4,1969.0,12.59677]
[1688372365541,2.55878816,1969.4,1969.0,15.856447]
[1688372366055,30.56,1970.1,1969.2,2.0]
[1688372366211,30.56,1970.1,1969.4,12.69375]
[1688372366212,2.55878816,1970.0,1969.4,12.69375]
[1688372366924,12.97441028,1970.0,1969.4,12.69375]
[1688372367124,18.05055028,1970.0,1969.4,12.69375]
[1688372367661,2.57527028,1970.0,1969.4,14.492584]
[1688372367965,2.55878816,1970.0,1969.5,2.0]
[1688372368111,2.55878816,1970.0,1969.6,12.6926]
[1688372369329,12.95799816,1970.0,1969.6,10.15408]
[1688372369528,2.55878816,1970.0,1969.6,10.15408]
[1688372369858,2.55878816,1970.0,1969.6,12.69266]
[1688372370225,2.55878816,1970.0,1969.6,14.415791]
[1688372370811,12.95795816,1970.0,1969.6,5.07704]
[1688372371014,12.95795816,1970.0,1969.6,10.15421]
[1688372371258,12.95794816,1970.0,1969.5,5.07719]
[1688372371441,12.95794816,1970.0,1969.5,10.1545]
[1688372371759,18.03408816,1970.0,1969.5,10.1545]
[1688372372065,20.57215816,1970.0,1969.3,7.83344]
[1688372372252,7.88178816,1970.0,1969.3,2.7557]
[1688372374339,7.89827028,1970.0,1969.3,2.7557]
[1688372374785,5.323,1969.8,1969.3,2.7557]
[1688372375098,7.88178816,1969.7,1969.3,2.7557]
[1688372377518,5.33948212,1970.0,1969.3,3.44080329]
[1688372377660,2.55878816,1969.9,1969.3,3.44080329]
[1688372378498,5.323,1969.8,1969.3,3.44080329]
[1688372378792,7.88178816,1969.8,1969.3,3.44080329]
[1688372378952,2.55878816,1969.8,1969.3,3.44080329]
[1688372379568,2.55878816,1969.7,1969.3,2.7557]
[1688372380351,2.55878816,1969.7,1969.2,4.09533293]
[1688372380352,5.323,1969.6,1969.2,4.09533293]
[1688372380552,2.55878816,1969.5,1969.2,4.09533293]
[1688372382191,35.883,1969.9,1969.2,4.09533293]
[1688372382399,33.11878816,1969.9,1969.3,1.31353329]
[1688372382697,0.79265039,1970.5,1969.5,0.904]
[1688372382698,30.56,1970.2,1969.5,0.904]
[1688372382896,0.904,1970.5,1969.7,2.0]
[1688372382897,2.55878816,1970.1,1969.7,2.0]
[1688372383385,2.55878816,1970.1,1969.5,2.6615]
[1688372383556,3.46278816,1970.1,1969.5,2.6615]
[1688372383770,2.55878816,1970.1,1969.5,2.6615]
[1688372384016,2.55878816,1970.1,1969.5,4.03165]
[1688372384325,7.88178816,1970.1,1969.5,4.03165]
[1688372384969,8.78478816,1969.9,1969.2,0.02713293]
[1688372385286,8.78478816,1969.9,1969.2,2.02713293]
[1688372385696,8.80127028,1969.9,1969.2,2.02713293]
[1688372386107,7.88178816,1969.9,1969.2,2.02713293]
[1688372386323,2.55878816,1969.9,1969.2,2.02713293]
[1688372386609,0.01648212,1969.8,1969.2,2.58639622]
[1688372386785,2.55878816,1969.7,1969.2,2.58639622]
[1688372389213,5.323,1969.6,1969.2,2.02713293]
[1688372389408,7.88178816,1969.6,1969.2,2.02713293]
[1688372390929,5.33948212,1969.8,1969.2,2.02713293]
[1688372391258,7.88178816,1969.7,1969.2,2.02713293]
[1688372393427,7.88178816,1969.7,1969.2,0.02713293]
[1688372393627,5.323,1969.5,1969.2,0.02713293]
[1688372393808,7.88178816,1969.4,1969.2,0.02713293]
[1688372395816,7.88178816,1969.3,1969.2,0.02713293]
[1688372396504,8.78578816,1969.3,1969.2,0.02713293]
[1688372397201,13.90983716,1969.3,1969.2,0.02713293]
[1688372397405,8.78578816,1969.3,1969.2,0.02713293]
[1688372397646,13.0057851,1969.3,1969.2,0.02713293]
[1688372397841,7.88178816,1969.3,1969.2,0.02713293]
[1688372398233,13.0056898,1969.3,1969.2,0.02713293]
[1688372398771,7.6826898,1969.3,1969.2,0.02713293]
[1688372398997,0.52839755,1969.7,1969.2,0.02713293]
[1688372399279,5.12316152,1969.6,1969.2,0.93113293]
[1688372399448,0.52839755,1969.9,1969.2,0.93113293]
[1688372399773,0.52839755,1969.9,1969.4,0.895]
[1688372399774,7.68189324,1969.8,1969.4,0.895]
[1688372399942,5.12310508,1969.7,1969.4,0.895]
[1688372400143,2.55878816,1969.8,1969.4,0.895]
[1688372400467,0.40350284,1969.9,1969.4,0.895]
[1688372400770,5.12278249,1969.8,1969.4,1.44719]
[1688372400932,0.52839755,1970.0,1969.4,4.44719]
[1688372401138,5.12271702,1969.9,1969.4,4.44719]
[1688372401381,6.64404794,1970.1,1969.4,4.44719]
[1688372401532,7.6814936,1970.0,1969.4,4.44719]
[1688372401732,5.12270544,1969.9,1969.4,4.44719]
[1688372402073,5.12270544,1969.9,1969.5,0.444719]
[1688372402968,5.12270544,1969.9,1969.6,10.15424]
[1688372402969,2.55878816,1969.8,1969.6,10.15424]
[1688372403348,2.55878816,1969.7,1969.3,5.07793]
[1688372403544,0.52839755,1969.8,1969.2,0.02713293]
[1688372403545,2.55878816,1969.4,1969.2,0.02713293]
[1688372403855,7.63659816,1969.4,1969.2,0.02713293]
[1688372404172,12.95972816,1969.3,1969.2,0.02713293]
[1688372404486,12.90972816,1969.3,1969.2,0.02713293]
[1688372404780,7.83178816,1969.3,1969.2,0.02713293]
[1688372405199,12.90972816,1969.3,1969.2,0.02713293]
[1688372405389,20.54312028,1969.3,1969.2,0.02713293]
[1688372405685,25.66731353,1969.3,1969.2,0.02713293]
[1688372407678,18.00415028,1969.3,1969.2,0.02713293]
[1688372408001,7.83178816,1969.3,1969.2,0.02713293]
[1688372409619,0.40354971,1969.5,1969.2,0.53768822]
[1688372409774,0.52839755,1969.8,1969.2,12.72263293]
[1688372410106,2.55878816,1969.7,1969.2,12.72263293]
[1688372410281,0.52839755,1969.8,1969.2,12.72263293]
[1688372410480,3.08718571,1969.8,1969.2,14.72263293]
[1688372410790,2.55878816,1969.8,1969.2,14.72263293]
[1688372410985,3.08718571,1969.8,1969.2,14.72263293]
[1688372411195,3.08718571,1969.8,1969.4,12.69387]
[1688372411357,0.52839755,1969.9,1969.4,12.69387]
[1688372411562,3.08718571,1969.9,1969.4,12.69387]
[1688372416204,2.55878816,1969.8,1969.4,12.69387]
[1688372417900,8.41018571,1969.8,1969.4,12.69387]
[1688372418073,13.48687571,1969.8,1969.4,12.69387]
[1688372419507,7.88178816,1969.5,1969.2,0.02713293]
[1688372419711,5.323,1969.3,1969.2,0.02713293]
[1688372419871,7.88178816,1969.3,1969.2,0.02713293]
[1688372420714,7.88178816,1969.3,1969.2,5.10533293]
[1688372420873,2.55878816,1969.3,1969.2,5.10533293]
[1688372421647,2.55878816,1969.3,1969.2,0.02713293]
[1688372422227,20.57663816,1969.3,1969.2,0.02713293]
[1688372422731,20.59312028,1969.3,1969.2,0.02713293]
[1688372425127,24.86577067,1969.3,1969.2,0.02713293]
[1688372425296,24.74288388,1969.3,1969.2,0.02713293]
[1688372426327,25.00379674,1969.3,1969.2,0.02713293]
[1688372426514,30.86516439,1969.3,1969.2,0.02713293]
[1688372426739,31.34516439,1969.3,1969.2,0.02713293]
[1688372426905,32.15011864,1969.3,1969.2,0.02713293]
[1688372427409,31.68618596,1969.3,1969.2,0.02713293]
[1688372428131,25.5475636,1969.3,1969.2,0.02713293]
[1688372429325,24.21114635,1969.3,1969.2,0.02713293]
[1688372429518,21.05415028,1969.3,1969.2,0.02713293]
[1688372429749,15.97621028,1969.3,1969.2,0.02713293]
[1688372429955,2.55878816,1969.3,1969.2,0.02713293]
[1688372430152,7.63672816,1969.3,1969.2,0.02713293]
[1688372430882,7.63672816,1969.3,1968.6,2.0]
[1688372431043,7.63672816,1969.3,1968.7,6.37039]
[1688372431236,7.63672816,1969.3,1968.7,12.086819]
[1688372431237,12.71466816,1969.3,1968.7,12.086819]
[1688372431664,31.091463,1969.6,1968.8,2.55878816]
[1688372431841,30.56,1969.6,1969.2,2.53903]
[1688372432040,30.56,1969.6,1969.2,12.69517]
[1688372432272,10.15364,1969.8,1969.2,14.347701]
[1688372432483,12.71242816,1969.8,1969.2,14.347701]
[1688372432823,0.531463,1969.9,1969.2,14.347701]
[1688372433066,2.55878816,1969.9,1969.3,1.31717145]
[1688372433382,2.55878816,1969.9,1969.4,12.6937]
[1688372433560,2.55878816,1969.9,1969.4,14.346061]
[1688372433943,12.71178816,1969.9,1969.4,11.807321]
[1688372434144,12.71178816,1969.9,1969.4,10.15496]
[1688372434358,7.88178816,1969.8,1969.4,10.15496]
[1688372434555,7.88178816,1969.8,1969.4,5.07767]
[1688372434556,18.03527816,1969.8,1969.4,5.07767]
[1688372434740,20.57359816,1969.8,1969.4,5.07767]
[1688372434941,20.57359816,1969.8,1969.4,10.15535]
[1688372435659,20.57359816,1969.8,1969.4,5.07767]
[1688372435842,20.59008028,1969.8,1969.3,5.07769]
[1688372436045,21.38928299,1969.8,1969.0,2.0056]
[1688372436242,5.323,1969.6,1969.2,5.0781]
[1688372436448,18.03674816,1969.5,1969.2,10.1563]
[1688372437060,18.03674816,1969.5,1969.2,5.0781]
[1688372437272,2.55878816,1969.5,1969.2,12.6954]